bitfinex-derivatives/quotes_BTCF0:USTF0_20250608
["timestamp","ask_amount","ask_price","bid_price","bid_amount"]
[1749391393712,0.9458868,105610.0,105600.0,0.20905454]
[1749391393713,0.6928068,105610.0,105600.0,0.20905454]
[1749391393907,0.6928068,105610.0,105600.0,0.58765454]
[1749391394105,0.6928068,105610.0,105600.0,0.39835004]
[1749391394508,0.2970068,105610.0,105600.0,1.39489454]
[1749391398413,0.2970068,105610.0,105600.0,1.89489454]
[1749391399715,0.2970068,105610.0,105600.0,1.70559004]
[1749391400514,0.2970068,105610.0,105600.0,1.89489454]
[1749391400710,0.7970068,105610.0,105600.0,1.89489454]
[1749391402614,0.60772,105610.0,105600.0,1.89489454]
[1749391402816,0.6892878,105610.0,105600.0,1.89489454]
[1749391403118,0.5,105610.0,105600.0,1.89489454]
[1749391403412,0.796847,105610.0,105600.0,1.89489454]
[1749391403614,0.5,105610.0,105600.0,1.89489454]
[1749391403817,0.60756,105610.0,105600.0,1.89489454]
[1749391404315,0.60756,105610.0,105600.0,2.10099912]
[1749391405807,0.5,105610.0,105600.0,2.10099912]
[1749391406017,0.60756,105610.0,105600.0,2.10099912]
[1749391407615,0.60756,105610.0,105600.0,2.10099905]
[1749391411809,0.60756,105610.0,105600.0,2.10099898]
[1749391419023,0.7968465,105610.0,105600.0,0.90685448]
[1749391419214,1.3724465,105610.0,105600.0,0.9657099]
[1749391419416,1.7332465,105610.0,105600.0,0.9659099]
[1749391419727,1.3724465,105610.0,105600.0,0.9659099]
[1749391420118,1.3724465,105610.0,105600.0,1.1552143]
[1749391420426,0.79906,105610.0,105600.0,1.5160143]
[1749391420728,0.79906,105610.0,105600.0,1.8853143]
[1749391421623,0.79906,105610.0,105600.0,2.0678143]
[1749391421827,0.60756,105610.0,105600.0,2.0678143]
[1749391424727,0.60756,105610.0,105600.0,2.06781423]
[1749391424926,0.60756,105610.0,105600.0,1.88531423]
[1749391425726,0.80346,105610.0,105600.0,1.88531423]
[1749391426629,0.80346,105610.0,105600.0,2.09141881]
[1749391428529,0.80346,105610.0,105600.0,2.09141874]
[1749391430030,0.80346,105610.0,105600.0,1.90921874]
[1749391430335,1.1747465,105610.0,105600.0,1.06985416]
[1749391430538,1.1747465,105610.0,105600.0,1.72282403]
[1749391430728,1.1747465,105610.0,105600.0,1.72262403]
[1749391431534,1.1747465,105610.0,105600.0,1.72282403]
[1749391432237,1.1747465,105610.0,105600.0,1.51589416]
[1749391432538,1.1747465,105610.0,105600.0,1.72285972]
[1749391433938,1.1747465,105610.0,105600.0,1.27681972]
[1749391434140,1.1747465,105610.0,105600.0,1.36208293]
[1749391434436,1.1747465,105610.0,105600.0,0.91604293]
[1749391434636,1.1747465,105610.0,105600.0,1.36204293]
[1749391434832,1.1747465,105610.0,105600.0,0.91604293]
[1749391435339,1.1747465,105610.0,105600.0,1.36204293]
[1749391436630,1.5355465,105610.0,105600.0,1.36204293]
[1749391439334,1.1747465,105610.0,105600.0,1.36204293]
[1749391439536,1.1747465,105610.0,105600.0,0.91604293]
[1749391439731,1.1747465,105610.0,105600.0,1.17249853]
[1749391439938,1.5355465,105610.0,105600.0,1.17269853]
[1749391440337,1.5355465,105610.0,105600.0,1.32031516]
[1749391440533,1.5355465,105610.0,105600.0,1.11352632]
[1749391440735,1.5355465,105610.0,105600.0,1.11332632]
[1749391441643,1.5355465,105610.0,105600.0,1.11352632]
[1749391443047,1.5355465,105610.0,105600.0,0.66756632]
[1749391443248,1.5355465,105610.0,105600.0,1.11348632]
[1749391443444,1.7249305,105610.0,105600.0,0.62732652]
[1749391443645,2.2157305,105610.0,105600.0,0.47950989]
[1749391443850,2.2157305,105610.0,105600.0,0.47930989]
[1749391444050,2.2157305,105610.0,105600.0,0.47950989]
[1749391444452,2.2157305,105610.0,105600.0,0.48355861]
[1749391445149,2.0263465,105610.0,105600.0,0.67286301]
[1749391445351,2.4723065,105610.0,105600.0,0.67286301]
[1749391446340,1.6653865,105610.0,105600.0,1.47958301]
[1749391446544,1.6653865,105610.0,105600.0,1.80989964]
[1749391446747,1.6653865,105610.0,105600.0,1.44909964]
[1749391447045,0.9908,105610.0,105600.0,1.44909964]
[1749391447247,1.1800864,105610.0,105600.0,2.00609964]
[1749391447456,1.2874864,105610.0,105600.0,1.83419964]
[1749391447643,1.2874864,105610.0,105600.0,1.68638301]
[1749391447844,1.2874864,105610.0,105600.0,1.89337178]
[1749391448047,1.2874864,105610.0,105600.0,2.25417178]
[1749391448442,1.2874864,105610.0,105600.0,2.19477532]
[1749391449051,1.2874864,105610.0,105600.0,2.04718301]
[1749391450249,0.9908,105610.0,105600.0,2.19478052]
[1749391450448,1.0982,105610.0,105600.0,2.25417178]
[1749391450750,0.6074,105610.0,105600.0,2.25417178]
[1749391451746,0.7966864,105610.0,105600.0,2.25417178]
[1749391452452,0.6074,105610.0,105600.0,2.25417178]
[1749391452751,0.6074,105610.0,105600.0,2.25517178]
[1749391454044,0.6074,105610.0,105600.0,2.25617178]
[1749391456556,0.6074,105610.0,105600.0,2.25617185]
[1749391459755,0.5,105610.0,105600.0,2.25617185]
[1749391459952,0.4296,105620.0,105610.0,0.1892865]
[1749391460158,0.537,105620.0,105610.0,0.7382865]
[1749391460353,0.537,105620.0,105610.0,0.94527527]
[1749391461258,0.538,105620.0,105610.0,1.39103527]
[1749391461452,0.538,105620.0,105610.0,1.39050664]
[1749391464851,0.537,105620.0,105610.0,1.39050664]
[1749391465052,0.537,105620.0,105610.0,1.39150664]
[1749391465262,0.0113416,105630.0,105620.0,0.1892688]
[1749391465458,0.1185816,105630.0,105620.0,0.9232688]
[1749391465670,0.1185816,105630.0,105620.0,1.12972894]
[1749391466054,0.1187816,105630.0,105620.0,1.12972894]
[1749391466452,0.0115416,105630.0,105620.0,1.57544894]
[1749391466661,0.1187816,105630.0,105620.0,1.57544894]
[1749391466864,0.1187816,105630.0,105620.0,1.57540894]
[1749391467461,0.1197816,105630.0,105620.0,1.57540894]
[1749391468364,0.1187816,105630.0,105620.0,1.57640894]
[1749391468559,0.1187816,105630.0,105620.0,1.57740894]
[1749391468763,0.1185816,105630.0,105620.0,1.57740894]
[1749391469068,0.1187816,105630.0,105620.0,1.57740894]
[1749391472165,0.1187816,105630.0,105620.0,1.13172894]
[1749391472365,0.1187816,105630.0,105620.0,1.57736894]
[1749391472761,0.3176816,105630.0,105620.0,1.57736894]
[1749391473476,0.2104416,105630.0,105620.0,1.57736894]
[1749391473770,0.1187816,105630.0,105620.0,1.57736894]
[1749391474559,0.1187816,105630.0,105620.0,0.94322894]
[1749391474764,0.5059325,105630.0,105620.0,0.39772894]
[1749391475064,0.5059325,105630.0,105620.0,0.6368288]
[1749391475065,0.7048325,105630.0,105620.0,0.6368288]
[1749391475465,0.5155816,105630.0,105620.0,0.9976288]
[1749391475864,0.5155816,105630.0,105620.0,1.00167758]
[1749391478470,0.5155816,105630.0,105620.0,0.99167758]
[1749391478671,0.4083416,105630.0,105620.0,0.99167758]
[1749391478874,0.5155816,105630.0,105620.0,0.99167758]
[1749391480572,0.5155816,105630.0,105620.0,1.19813772]
[1749391481575,0.1187816,105630.0,105620.0,1.19813772]
[1749391481873,0.1185816,105630.0,105620.0,1.57293772]
[1749391482172,0.1187816,105630.0,105620.0,1.57293772]
[1749391482371,0.1185816,105630.0,105620.0,1.76263772]
[1749391482563,0.1187816,105630.0,105620.0,1.76263772]
[1749391483776,0.1187816,105630.0,105620.0,1.55617758]
[1749391485474,0.1187816,105630.0,105620.0,1.76260593]
[1749391485667,0.1185816,105630.0,105620.0,1.76260593]
[1749391485972,0.1185816,105630.0,105620.0,1.55617758]
[1749391486169,0.1185816,105630.0,105620.0,1.96262961]
[1749391486572,0.1187816,105630.0,105620.0,1.96262961]
[1749391486766,0.1185816,105630.0,105620.0,1.75617758]
[1749391486972,0.1187816,105630.0,105620.0,1.75617758]
[1749391487165,0.1187816,105630.0,105620.0,2.04020413]
[1749391487368,0.1185816,105630.0,105620.0,2.04020413]
[1749391487570,0.1187816,105630.0,105620.0,2.04020413]
[1749391487871,0.1187816,105630.0,105620.0,2.33486359]
[1749391488878,0.0115416,105630.0,105620.0,2.33486359]
[1749391489081,0.0115416,105630.0,105620.0,2.23486359]
[1749391489378,0.0115416,105630.0,105620.0,1.66101704]
[1749391489574,0.1980416,105630.0,105620.0,1.21557704]
[1749391489775,0.3843416,105630.0,105620.0,1.66101704]
[1749391490572,0.1980416,105630.0,105620.0,1.66101704]
[1749391491275,0.1980416,105630.0,105620.0,2.02181704]
[1749391492382,0.3779416,105630.0,105620.0,2.02181704]
[1749391492683,0.3779416,105630.0,105620.0,2.02177704]
[1749391494787,0.3779416,105630.0,105620.0,1.72711758]
[1749391496086,0.3779416,105630.0,105620.0,2.02177704]
[1749391502897,0.3779416,105630.0,105620.0,1.39027704]
[1749391503090,0.3779416,105630.0,105620.0,1.83555704]
[1749391503391,0.1980416,105630.0,105620.0,1.83555704]
[1749391503592,0.1980416,105630.0,105620.0,2.01875704]
[1749391503796,0.1186216,105630.0,105620.0,2.11875704]
[1749391504190,0.1184216,105630.0,105620.0,2.01875704]
[1749391504599,0.1186216,105630.0,105620.0,2.01875704]
[1749391504996,0.1186216,105630.0,105620.0,2.11875704]
[1749391505399,0.1186216,105630.0,105620.0,2.01875704]
[1749391505586,0.1186216,105630.0,105620.0,2.11875704]
[1749391505991,0.1186216,105630.0,105620.0,2.01875704]
[1749391506497,0.1186216,105630.0,105620.0,2.11875704]
[1749391506699,0.1184216,105630.0,105620.0,2.11875704]
[1749391506888,0.1184216,105630.0,105620.0,2.01875704]
[1749391507089,0.3098216,105630.0,105620.0,2.01875704]
[1749391508096,0.3098216,105630.0,105620.0,2.11875704]
[1749391508295,0.3098216,105630.0,105620.0,2.01875704]
[1749391508497,0.3098216,105630.0,105620.0,2.11875704]
[1749391509392,0.1186216,105630.0,105620.0,2.11875704]
[1749391509792,0.1186216,105630.0,105620.0,2.21875704]
[1749391512203,0.1186216,105630.0,105620.0,1.92409758]
[1749391513903,0.3817,105650.0,105640.0,0.1892303]
[1749391514108,0.66988,105650.0,105640.0,1.20205017]
[1749391514494,0.67008,105650.0,105640.0,1.20205017]
[1749391514700,0.67008,105650.0,105640.0,1.2424584]
[1749391515101,0.67008,105650.0,105640.0,1.03559853]
[1749391515302,0.67308,105650.0,105640.0,0.59043853]
[1749391515498,0.67508,105650.0,105640.0,1.03555853]
[1749391516516,0.568,105650.0,105640.0,1.39635853]
[1749391516712,0.67488,105650.0,105640.0,1.39635853]
[1749391517214,0.67488,105650.0,105640.0,1.59435853]
[1749391517415,0.67508,105650.0,105640.0,1.59435853]
[1749391518006,0.67208,105650.0,105640.0,1.59435853]
[1749391518213,0.67308,105650.0,105640.0,1.59435853]
[1749391518417,0.30048,105650.0,105640.0,1.59435853]
[1749391518722,0.30028,105650.0,105640.0,1.88815853]
[1749391518916,0.10908,105650.0,105640.0,2.18367263]
[1749391519123,0.10928,105650.0,105640.0,2.18367263]
[1749391519720,0.10928,105650.0,105640.0,1.88815853]
[1749391520023,0.10728,105650.0,105640.0,1.88915853]
[1749391520329,0.10728,105650.0,105640.0,1.89015853]
[1749391520518,0.10728,105650.0,105640.0,1.89420731]
[1749391521028,0.10728,105650.0,105640.0,2.18972141]
[1749391521223,0.10728,105650.0,105640.0,2.28972141]
[1749391521428,0.10708,105650.0,105640.0,2.18972141]
[1749391521629,0.10728,105650.0,105640.0,2.18972141]
[1749391523824,0.10728,105650.0,105640.0,1.89420731]
[1749391525624,0.0002,105650.0,105640.0,1.89420731]
[1749391525829,0.10728,105650.0,105640.0,1.99420731]
[1749391526129,0.10728,105650.0,105640.0,1.89520731]
[1749391526331,0.10728,105650.0,105640.0,1.99520731]
[1749391526533,0.10728,105650.0,105640.0,1.89520731]
[1749391526733,0.10708,105650.0,105640.0,1.99720731]
[1749391527028,0.10728,105650.0,105640.0,1.89620731]
[1749391527232,0.10708,105650.0,105640.0,1.89620731]
[1749391527432,0.10708,105650.0,105640.0,1.99620731]
[1749391528925,0.10708,105650.0,105640.0,1.99420731]
[1749391530537,0.10708,105650.0,105640.0,1.89420731]
[1749391530736,0.10708,105650.0,105640.0,1.99420731]
[1749391532838,0.28878,105650.0,105640.0,1.89392731]
[1749391533139,0.48708,105650.0,105640.0,1.89392731]
[1749391533740,0.10708,105650.0,105640.0,1.89392731]
[1749391533937,0.5555585,105660.0,105650.0,0.1892134]
[1749391534137,0.5555585,105660.0,105650.0,1.22030071]
[1749391534440,0.5557585,105660.0,105650.0,1.22030071]
[1749391535134,0.7536585,105660.0,105650.0,1.22030071]
[1749391535336,0.7556585,105660.0,105650.0,1.22030071]
[1749391536737,0.7546585,105660.0,105650.0,1.22030071]
[1749391536932,0.7536585,105660.0,105650.0,1.22230071]
[1749391537736,0.7536585,105660.0,105650.0,1.02930071]
[1749391538035,0.9418585,105660.0,105650.0,1.02930071]
[1749391542343,0.5124585,105660.0,105650.0,1.02930071]
[1749391543240,0.5124585,105660.0,105650.0,1.47402071]
[1749391544037,0.5124585,105660.0,105650.0,1.28022071]
[1749391547053,0.5124585,105660.0,105650.0,0.83550071]
[1749391547242,0.5124585,105660.0,105650.0,1.28014071]
[1749391550147,0.5124585,105660.0,105650.0,1.75354071]
[1749391550950,0.5124585,105660.0,105650.0,2.11434071]
[1749391551253,0.5124585,105660.0,105650.0,2.11838949]
[1749391552552,0.5124585,105660.0,105650.0,1.91204329]
[1749391553548,0.5124585,105660.0,105650.0,2.11886146]
[1749391553854,0.5124585,105660.0,105650.0,1.91204329]
[1749391554453,0.5124585,105660.0,105650.0,2.118864]
[1749391555554,0.5124585,105660.0,105650.0,1.91204329]
[1749391555852,0.5124585,105660.0,105650.0,2.11886671]
[1749391556446,0.5124585,105660.0,105650.0,2.10064329]
[1749391556650,0.5124585,105660.0,105650.0,2.30746707]
[1749391560158,0.5124585,105660.0,105650.0,2.10064329]
[1749391563059,0.5124585,105660.0,105650.0,2.28994329]
[1749391566658,0.3242585,105660.0,105650.0,2.28994329]
[1749391568359,0.3242585,105660.0,105650.0,1.56834329]
[1749391568552,0.3242585,105660.0,105650.0,2.28994329]
[1749391571065,0.1072216,105660.0,105650.0,2.28994329]
[1749391573667,0.5589,105670.0,105660.0,0.5553738]
[1749391573864,0.66558,105670.0,105660.0,1.12298015]
[1749391574767,0.66658,105670.0,105660.0,1.12298015]
[1749391574967,0.66758,105670.0,105660.0,1.12298015]
[1749391577170,0.66758,105670.0,105660.0,0.76218015]
[1749391577372,0.66758,105670.0,105660.0,1.12298015]
[1749391578173,0.66758,105670.0,105660.0,1.56718015]
[1749391580677,0.66758,105670.0,105660.0,1.57122893]
[1749391581778,0.66758,105670.0,105660.0,1.36442258]
[1749391583176,0.66758,105670.0,105660.0,1.57122893]
[1749391584477,0.66758,105670.0,105660.0,1.36442258]
[1749391585078,0.66758,105670.0,105660.0,1.57122893]
[1749391585278,0.66758,105670.0,105660.0,1.36442258]
[1749391588584,0.66758,105670.0,105660.0,1.57122893]
[1749391588784,0.66758,105670.0,105660.0,1.75942893]
[1749391589583,0.66758,105670.0,105660.0,1.75926893]
[1749391589775,1.2175564,105670.0,105660.0,0.57703353]
[1749391589982,0.8567564,105670.0,105660.0,1.21026783]
[1749391590187,1.2175564,105670.0,105660.0,1.21026783]
[1749391590686,1.2175564,105670.0,105660.0,0.57703353]
[1749391590877,1.2175564,105670.0,105660.0,1.02103353]
[1749391591175,1.2175564,105670.0,105660.0,1.21022803]
[1749391591685,1.2175564,105670.0,105660.0,1.00342168]
[1749391592282,1.2175564,105670.0,105660.0,1.21022803]
[1749391592585,1.2175564,105670.0,105660.0,1.57102803]
[1749391592586,0.7500764,105670.0,105660.0,1.57102803]
[1749391592781,0.6675,105670.0,105660.0,1.57102803]
[1749391593189,0.8566766,105670.0,105660.0,1.57102803]
[1749391593589,0.5611,105670.0,105660.0,1.57102803]
[1749391593782,0.6673,105670.0,105660.0,1.57102803]
[1749391593975,0.6675,105670.0,105660.0,1.94692803]
[1749391595183,0.5611,105670.0,105660.0,1.94692803]
[1749391595491,0.6675,105670.0,105660.0,1.94692803]
[1749391595993,0.8566764,105670.0,105660.0,1.94692803]
[1749391596390,0.6675,105670.0,105660.0,1.94692803]
[1749391597090,0.4748,105670.0,105660.0,1.94692803]
[1749391597587,0.2903,105670.0,105660.0,1.74012168]
[1749391597796,0.2901,105670.0,105660.0,1.74012168]
[1749391597983,0.2903,105670.0,105660.0,1.74012168]
[1749391598186,0.0022,105670.0,105660.0,1.74012168]
[1749391598382,0.1086,105670.0,105660.0,1.74012168]
[1749391598788,0.1084,105670.0,105660.0,1.74012168]
[1749391599092,0.1086,105670.0,105660.0,1.74012168]
[1749391599591,0.1086,105670.0,105660.0,2.03563578]
[1749391599794,0.0022,105670.0,105660.0,2.03563578]
[1749391600095,0.1064,105680.0,105660.0,1.84556589]
[1749391600283,0.1064,105680.0,105670.0,1.08699069]
[1749391600487,0.1066,105680.0,105670.0,1.69218359]
[1749391601194,0.1066,105680.0,105670.0,1.3970451]
[1749391601895,0.1066,105680.0,105670.0,1.3980451]
[1749391602494,0.1066,105680.0,105670.0,1.6043691]
[1749391602992,0.1066,105680.0,105670.0,1.6053691]
[1749391603201,0.1066,105680.0,105670.0,1.3990451]
[1749391603496,0.1066,105680.0,105670.0,1.60531533]
[1749391604298,0.0001416,105690.0,105680.0,0.1891596]
[1749391604503,0.1065416,105690.0,105680.0,1.3896596]
[1749391604999,0.1067416,105690.0,105680.0,0.9458596]
[1749391605200,0.1067416,105690.0,105680.0,1.1905196]
[1749391605395,0.6783833,105690.0,105680.0,0.5576]
[1749391605596,0.7739724,105690.0,105680.0,0.6329196]
[1749391605906,0.726684,105690.0,105680.0,0.6329196]
[1749391606100,0.6793985,105690.0,105680.0,0.6329196]
[1749391606402,0.4902416,105690.0,105680.0,0.9937196]
[1749391606704,0.4912416,105690.0,105680.0,0.9937196]
[1749391606906,0.4912416,105690.0,105680.0,1.1781196]
[1749391607206,0.4910416,105690.0,105680.0,1.1781196]
[1749391607401,0.4912416,105690.0,105680.0,1.1781196]
[1749391611003,0.4912416,105690.0,105680.0,1.18216838]
[1749391611509,0.1250632,105690.0,105680.0,1.18216838]
[1749391611701,0.1250632,105690.0,105680.0,1.36336838]
[1749391613001,0.1086,105690.0,105680.0,1.36336838]
[1749391615799,0.2977417,105690.0,105680.0,1.00256838]
[1749391615998,0.2897,105690.0,105680.0,1.36336838]
[1749391617910,0.4788418,105690.0,105680.0,1.36336838]
[1749391621310,0.4788418,105690.0,105680.0,1.36308838]
[1749391621506,0.6737418,105690.0,105680.0,1.18188838]
[1749391622809,0.6737418,105690.0,105680.0,1.38815861]
[1749391628308,0.6737418,105690.0,105680.0,1.18188838]
[1749391628707,0.6737418,105690.0,105680.0,1.38148838]
[1749391630018,0.4846,105690.0,105680.0,1.38148838]
[1749391630218,0.2897,105690.0,105680.0,1.38148838]
[1749391630720,0.1086,105690.0,105680.0,1.38148838]
[1749391631818,0.0022,105690.0,105680.0,1.38148838]
[1749391632020,0.10836,105690.0,105680.0,1.74228838]
[1749391632316,0.10816,105690.0,105680.0,1.92348838]
[1749391632514,0.10836,105690.0,105680.0,1.92348838]
[1749391633115,0.2975018,105690.0,105680.0,1.74228838]
[1749391633318,0.2975018,105690.0,105680.0,0.54924878]
[1749391633519,0.6925018,105690.0,105680.0,0.82092838]
[1749391638627,0.6925018,105690.0,105680.0,1.02719861]
[1749391640324,0.6925018,105690.0,105680.0,0.37760838]
[1749391640624,1.0533018,105690.0,105680.0,0.63644838]
[1749391641021,0.6925018,105690.0,105680.0,0.63644838]
[1749391641424,0.6925018,105690.0,105680.0,0.84271861]
[1749391641918,0.4957018,105690.0,105680.0,0.84271861]
[1749391642127,0.4957018,105690.0,105680.0,1.23011861]
[1749391643227,0.9248218,105690.0,105680.0,1.23011861]
[1749391643426,0.7266218,105690.0,105680.0,1.23011861]
[1749391643830,0.7266218,105690.0,105680.0,1.02384838]
[1749391645626,0.6204618,105690.0,105680.0,1.02384838]
[1749391645823,0.7266218,105690.0,105680.0,1.23011861]
[1749391646231,0.7264218,105690.0,105680.0,1.23011861]
[1749391646824,0.7264218,105690.0,105680.0,1.59091861]
[1749391647025,0.7266218,105690.0,105680.0,1.59091861]
[1749391647426,0.6204618,105690.0,105680.0,1.78791861]
[1749391647725,0.7266218,105690.0,105680.0,1.78791861]
[1749391648320,0.6204618,105690.0,105680.0,1.78791861]
[1749391648526,0.7266218,105690.0,105680.0,1.78791861]
[1749391651431,0.53748,105690.0,105680.0,1.78791861]
[1749391651637,0.384025,105690.0,105680.0,1.78791861]
[1749391651930,0.489745,105690.0,105680.0,1.78791861]
[1749391652134,0.489945,105690.0,105680.0,1.58164838]
[1749391652334,0.489745,105690.0,105680.0,1.58164838]
[1749391652535,0.489945,105690.0,105680.0,1.58164838]
[1749391653040,0.384025,105690.0,105680.0,1.58164838]
[1749391653245,0.489945,105690.0,105680.0,1.58164838]
[1749391655930,0.44265881,105690.0,105680.0,1.58164838]
[1749391656241,0.39537262,105690.0,105680.0,1.58164838]
[1749391656738,0.10612,105690.0,105680.0,1.58164838]
[1749391656941,0.05883381,105690.0,105680.0,1.58164838]
[1749391657742,0.05903381,105690.0,105680.0,1.78807283]
[1749391664450,0.1060616,105700.0,105690.0,0.1891417]
[1749391664651,0.1060616,105700.0,105690.0,1.12226615]
[1749391664949,0.0003416,105700.0,105690.0,1.12226615]
[1749391665140,0.1062616,105700.0,105690.0,0.9158417]
[1749391665842,0.1080616,105700.0,105690.0,0.9158417]
[1749391666243,0.1062616,105700.0,105690.0,0.9158417]
[1749391666443,0.1062616,105700.0,105690.0,1.12306003]
[1749391666645,0.1082616,105700.0,105690.0,1.12306003]
[1749391666845,0.1082616,105700.0,105690.0,0.9168417]
[1749391667244,0.0607782,105700.0,105690.0,0.9168417]
[1749391667440,0.0589782,105700.0,105690.0,0.9178417]
[1749391667646,0.0589782,105700.0,105690.0,1.0178417]
[1749391667845,0.0587782,105700.0,105690.0,1.0178417]
[1749391668140,0.0589782,105700.0,105690.0,0.9178417]
[1749391668447,0.0589782,105700.0,105690.0,1.21298019]
[1749391668950,0.0589782,105700.0,105690.0,0.9178417]
[1749391669250,0.0589782,105700.0,105690.0,1.3606417]
[1749391669446,0.2568782,105700.0,105690.0,1.3606417]
[1749391670749,0.2568782,105700.0,105690.0,1.36469048]
[1749391673547,0.1981,105700.0,105690.0,1.36469048]
[1749391675958,0.1981,105700.0,105690.0,1.36369048]
[1749391676155,0.1981,105700.0,105690.0,1.36669048]
[1749391676454,0.1981,105700.0,105690.0,1.36869048]
[1749391677356,0.1981,105700.0,105690.0,1.72949048]
[1749391678452,0.1981,105700.0,105690.0,1.28669048]
[1749391678651,0.1981,105700.0,105690.0,1.72929048]
[1749391686849,0.30378,105700.0,105690.0,1.72929048]
[1749391687258,0.30378,105700.0,105690.0,2.02442897]
[1749391689158,0.30378,105700.0,105690.0,2.21782897]
[1749391689464,0.1058216,105710.0,105700.0,0.1891235]
[1749391689654,0.288196,105710.0,105700.0,1.12286826]
[1749391690460,0.28918,105710.0,105700.0,0.9165235]
[1749391690862,0.28938,105710.0,105700.0,0.9165235]
[1749391691064,0.28938,105710.0,105700.0,0.9175235]
[1749391692061,0.28938,105710.0,105700.0,1.12394239]
[1749391692262,0.28938,105710.0,105700.0,1.12494239]
[1749391692663,0.1837,105710.0,105700.0,1.12494239]
[1749391692863,0.28938,105710.0,105700.0,1.12494239]
[1749391693262,0.28918,105710.0,105700.0,0.9185235]
[1749391693454,9.438e-05,105720.0,105700.0,1.061634]
[1749391693655,0.25360379,105730.0,105720.0,0.1890877]
[1749391693855,0.45070379,105730.0,105720.0,0.78099968]
[1749391694155,0.64470379,105730.0,105720.0,0.78099968]
[1749391694563,0.64470379,105730.0,105720.0,0.96929968]
[1749391695462,0.64570379,105730.0,105720.0,0.76287241]
[1749391695858,0.64570379,105730.0,105720.0,0.96911206]
[1749391696065,0.54002379,105730.0,105720.0,0.96911206]
[1749391696262,0.64670379,105730.0,105720.0,0.96911206]
[1749391698470,0.64670379,105730.0,105720.0,1.04639089]
[1749391701370,0.64670379,105730.0,105720.0,1.05043967]
[1749391702067,0.64670379,105730.0,105720.0,1.23413967]
[1749391703176,0.54102379,105730.0,105720.0,1.23413967]
[1749391703360,0.64666379,105730.0,105720.0,1.23413967]
[1749391704176,0.45286379,105730.0,105720.0,1.23413967]
[1749391705178,0.34722379,105730.0,105720.0,1.23413967]
[1749391705373,0.25576379,105730.0,105720.0,1.23413967]
[1749391705574,0.15012379,105730.0,105720.0,1.23413967]
[1749391705770,0.10684,105730.0,105720.0,1.23513967]
[1749391705967,0.10684,105730.0,105720.0,1.43133967]
[1749391706166,0.10584,105730.0,105720.0,1.43133967]
[1749391706371,0.10564,105730.0,105720.0,1.43233967]
[1749391706578,0.10584,105730.0,105720.0,1.43233967]
[1749391706976,0.10584,105730.0,105720.0,1.43133967]
[1749391707276,0.10584,105730.0,105720.0,1.43233967]
[1749391708077,0.0002,105730.0,105720.0,1.43233967]
[1749391708279,0.79334,105740.0,105730.0,0.1890707]
[1749391708577,0.79334,105740.0,105730.0,1.3850507]
[1749391709075,0.79334,105740.0,105730.0,1.78169035]
[1749391709473,0.79534,105740.0,105730.0,1.78169035]
[1749391710677,0.79534,105740.0,105730.0,1.5754507]
[1749391712073,0.79534,105740.0,105730.0,1.3850507]
[1749391712573,0.79534,105740.0,105730.0,0.9429707]
[1749391712775,0.99444,105740.0,105730.0,1.1882307]
[1749391712980,1.19404,105740.0,105730.0,1.1882307]
[1749391713571,1.19404,105740.0,105730.0,0.7462707]
[1749391713775,1.8384406,105740.0,105730.0,0.1890726]
[1749391713981,1.8857078,105740.0,105730.0,0.6310307]
[1749391714177,1.8384406,105740.0,105730.0,0.6310307]
[1749391715076,1.7911741,105740.0,105730.0,0.6310307]
[1749391715275,1.7911741,105740.0,105730.0,0.1890707]
[1749391715474,1.7911741,105740.0,105730.0,0.63503948]
[1749391715778,1.4303741,105740.0,105730.0,0.63503948]
[1749391715967,1.7439104,105740.0,105730.0,0.63503948]
[1749391716166,1.7438928,105740.0,105730.0,0.63503948]
[1749391717080,1.7438928,105740.0,105730.0,0.19311948]
[1749391717283,1.7438928,105740.0,105730.0,0.63503948]
[1749391717482,1.7438928,105740.0,105730.0,0.63499948]
[1749391718285,1.55484,105740.0,105730.0,0.63499948]
[1749391718483,1.55484,105740.0,105730.0,0.19311948]
[1749391718783,1.55484,105740.0,105730.0,0.63499948]
[1749391719180,1.55484,105740.0,105730.0,0.19311948]
[1749391719380,1.55484,105740.0,105730.0,0.63499948]
[1749391719784,1.19424,105740.0,105730.0,0.99579948]
[1749391719984,1.19424,105740.0,105730.0,1.18259948]
[1749391720379,0.9942,105740.0,105730.0,1.18259948]
[1749391720585,0.9944,105740.0,105730.0,1.36459948]
[1749391721984,0.9944,105740.0,105730.0,1.36455948]
[1749391722581,0.7953,105740.0,105730.0,1.36455948]
[1749391722784,0.7953,105740.0,105730.0,0.92271948]
[1749391723084,0.7953,105740.0,105730.0,1.5704789]
[1749391724072,0.7953,105740.0,105730.0,1.1286389]
[1749391724276,0.7953,105740.0,105730.0,1.5704389]
[1749391725582,0.7953,105740.0,105730.0,1.1286389]
[1749391725781,0.9887,105740.0,105730.0,1.5704389]
[1749391726176,1.1867,105740.0,105730.0,1.5703989]
[1749391727587,1.1867,105740.0,105730.0,1.36447948]
[1749391729078,1.1867,105740.0,105730.0,1.5703989]
[1749391730879,1.1867,105740.0,105730.0,1.1286389]
[1749391731085,1.1867,105740.0,105730.0,1.5703589]
[1749391731687,1.1867,105740.0,105730.0,1.2095589]
[1749391731991,1.1867,105740.0,105730.0,1.5703589]
[1749391735488,1.1867,105740.0,105730.0,1.36443948]
[1749391736593,0.9887,105740.0,105730.0,1.36443948]
[1749391737690,0.7953,105740.0,105730.0,1.36443948]
[1749391740299,0.7953,105740.0,105730.0,1.57078616]
[1749391740597,0.7953,105740.0,105730.0,1.12906616]
[1749391740799,0.7953,105740.0,105730.0,1.57062616]
[1749391741299,0.5984,105740.0,105730.0,1.76412616]
[1749391741691,0.5984,105740.0,105730.0,1.55777948]
[1749391743797,0.7831,105740.0,105730.0,1.36427948]
[1749391745386,0.6777,105740.0,105730.0,1.36427948]
[1749391745592,0.59816,105740.0,105730.0,1.36427948]
[1749391745893,0.59796,105740.0,105730.0,1.55927948]
[1749391746194,0.4928,105740.0,105730.0,1.55927948]
[1749391746386,0.493,105740.0,105730.0,1.65927948]
[1749391746591,0.493,105740.0,105730.0,1.85441797]
[1749391748702,0.0022,105740.0,105730.0,1.85441797]
[1749391750093,0.10516,105750.0,105740.0,0.1890528]
[1749391750299,0.10516,105750.0,105740.0,1.33222849]
[1749391750494,0.77532753,105770.0,105760.0,0.189017]
[1749391750695,1.26068673,105770.0,105760.0,0.630417]
[1749391751399,1.07168753,105770.0,105760.0,0.630417]
[1749391752198,1.07168753,105770.0,105760.0,0.992217]
[1749391752199,0.71088753,105770.0,105760.0,0.992217]
[1749391752401,0.71488753,105770.0,105760.0,0.992217]
[1749391753195,0.71888753,105770.0,105760.0,0.992217]
[1749391754401,0.71888753,105770.0,105760.0,0.992137]
[1749391755601,0.90788663,105770.0,105760.0,0.992137]
[1749391755802,0.90788663,105770.0,105760.0,0.550817]